[Event "Late-Titled-Tuesday-Blitz-March-05-2024"]
[Site "Chess.com"]
[Date "2024.03.05"]
[Round "8"]
[White "DonJuan_34"]
[Black "Zhigalko_Sergei"]
[Result "0-1"]
[WhiteElo "2481"]
[BlackElo "2863"]
[TimeControl "180+1"]
[EndTime "15:23:15 PST"]
[Termination "Zhigalko_Sergei won by resignation"]

1. d4 {[%clk 0:03:00.9]} 1... Nf6 {[%clk 0:03:00.2]} 2. c4 {[%clk 0:02:59.2]}
2... e6 {[%clk 0:03:00.4]} 3. Nc3 {[%clk 0:02:57.1]} 3... Bb4 {[%clk 0:02:59.7]}
4. Nf3 {[%clk 0:02:56.8]} 4... b6 {[%clk 0:02:59.2]} 5. Bg5 {[%clk 0:02:55.6]}
5... h6 {[%clk 0:02:58.9]} 6. Bh4 {[%clk 0:02:55.3]} 6... g5 {[%clk 0:02:58.9]}
7. Bg3 {[%clk 0:02:55.2]} 7... Ne4 {[%clk 0:02:59.2]} 8. Qc2 {[%clk 0:02:52.5]}
8... Bb7 {[%clk 0:02:59.3]} 9. Nd2 {[%clk 0:02:52]} 9... Bxc3 {[%clk 0:02:59.2]}
10. bxc3 {[%clk 0:02:51.7]} 10... Nxg3 {[%clk 0:02:59.9]} 11. hxg3 {[%clk
0:02:51.6]} 11... d6 {[%clk 0:03:00.8]} 12. f3 {[%clk 0:02:51.7]} 12... h5
{[%clk 0:02:55.6]} 13. e3 {[%clk 0:02:50.6]} 13... Nd7 {[%clk 0:02:55.5]} 14.
Bd3 {[%clk 0:02:50.3]} 14... Qe7 {[%clk 0:02:51.7]} 15. Be4 {[%clk 0:02:48.7]}
15... d5 {[%clk 0:02:47.9]} 16. Bd3 {[%clk 0:02:45.7]} 16... h4 {[%clk 0:02:43]}
17. O-O-O {[%clk 0:02:36.5]} 17... O-O-O {[%clk 0:02:32.3]} 18. e4 {[%clk
0:02:28.6]} 18... dxc4 {[%clk 0:02:12.4]} 19. Bxc4 {[%clk 0:02:24.7]} 19... hxg3
{[%clk 0:02:12.4]} 20. Rxh8 {[%clk 0:02:17.2]} 20... Rxh8 {[%clk 0:02:11.6]} 21.
Nf1 {[%clk 0:02:17.7]} 21... Qf6 {[%clk 0:02:00.4]} 22. Qa4 {[%clk 0:01:58.1]}
22... a5 {[%clk 0:01:45.4]} 23. Bb5 {[%clk 0:01:46.2]} 23... Qf4+ {[%clk
0:01:42]} 24. Kb1 {[%clk 0:01:42.5]} 24... Nf6 {[%clk 0:01:38.4]} 25. Bc6 {[%clk
0:01:36.4]} 25... g4 {[%clk 0:01:35.9]} 26. e5 {[%clk 0:01:27.3]} 26... Nd5
{[%clk 0:01:30.9]} 27. Bxd5 {[%clk 0:01:24.6]} 27... Bxd5 {[%clk 0:01:30.8]} 28.
fxg4 {[%clk 0:01:21.1]} 28... Bxg2 {[%clk 0:01:27]} 29. Qc4 {[%clk 0:01:17.2]}
29... Bd5 {[%clk 0:01:09.4]} 30. Qa6+ {[%clk 0:01:11.7]} 30... Kb8 {[%clk
0:01:09.2]} 31. c4 {[%clk 0:01:05.1]} 31... Bb7 {[%clk 0:01:02.5]} 0-1

[Event "Late-Titled-Tuesday-Blitz-March-05-2024"]
[Site "Chess.com"]
[Date "2024.03.05"]
[Round "8"]
[White "jaskol95"]
[Black "traack"]
[Result "1-0"]
[WhiteElo "2564"]
[BlackElo "2431"]
[TimeControl "180+1"]
[EndTime "15:23:16 PST"]
[Termination "jaskol95 won by resignation"]

1. e4 {[%clk 0:03:00.9]} 1... e5 {[%clk 0:02:56.8]} 2. Nf3 {[%clk 0:03:00.7]}
2... Nc6 {[%clk 0:02:56.5]} 3. Bc4 {[%clk 0:03:01.2]} 3... Nf6 {[%clk
0:02:55.6]} 4. Ng5 {[%clk 0:03:01.5]} 4... d5 {[%clk 0:02:55.6]} 5. exd5 {[%clk
0:03:02.4]} 5... Na5 {[%clk 0:02:55.7]} 6. Bb5+ {[%clk 0:03:03.2]} 6... c6
{[%clk 0:02:56.2]} 7. dxc6 {[%clk 0:03:04.1]} 7... bxc6 {[%clk 0:02:56.4]} 8.
Bd3 {[%clk 0:03:05]} 8... h6 {[%clk 0:02:53.7]} 9. Ne4 {[%clk 0:03:02.1]} 9...
c5 {[%clk 0:02:23.9]} 10. b3 {[%clk 0:02:53.1]} 10... Nc6 {[%clk 0:02:14.2]} 11.
Nxf6+ {[%clk 0:02:38.7]} 11... Qxf6 {[%clk 0:02:12.6]} 12. Be4 {[%clk
0:02:39.3]} 12... Rb8 {[%clk 0:02:05.7]} 13. Nc3 {[%clk 0:02:27.4]} 13... Bd7
{[%clk 0:01:55.6]} 14. Bb2 {[%clk 0:02:22.3]} 14... Qg5 {[%clk 0:01:53.9]} 15.
h4 {[%clk 0:02:00.2]} 15... Qd8 {[%clk 0:01:40.9]} 16. Nd5 {[%clk 0:01:54]}
16... Bd6 {[%clk 0:01:39.9]} 17. Ne3 {[%clk 0:01:40.5]} 17... Qc8 {[%clk
0:01:36.7]} 18. Qh5 {[%clk 0:01:31.2]} 18... g6 {[%clk 0:01:21.6]} 19. Bxg6
{[%clk 0:01:28.6]} 19... Be6 {[%clk 0:01:06.6]} 20. Bf5 {[%clk 0:01:24.8]} 20...
Ne7 {[%clk 0:01:04.6]} 21. Bxe6 {[%clk 0:01:23.6]} 21... Qxe6 {[%clk 0:01:05.5]}
22. Nc4 {[%clk 0:01:21.5]} 22... Ng6 {[%clk 0:00:58.8]} 23. O-O-O {[%clk
0:01:17.6]} 23... Bc7 {[%clk 0:00:56.8]} 24. Nxe5 {[%clk 0:01:04.2]} 24... Bxe5
{[%clk 0:00:53.1]} 25. Bxe5 {[%clk 0:01:03.5]} 25... Nxe5 {[%clk 0:00:51.5]} 26.
Rde1 {[%clk 0:01:00.6]} 1-0

[Event "Late-Titled-Tuesday-Blitz-March-05-2024"]
[Site "Chess.com"]
[Date "2024.03.05"]
[Round "8"]
[White "Sjakkerntobi"]
[Black "Charodej1"]
[Result "1-0"]
[WhiteElo "2490"]
[BlackElo "2332"]
[TimeControl "180+1"]
[EndTime "15:23:23 PST"]
[Termination "Sjakkerntobi won by resignation"]

1. e4 {[%clk 0:03:00.9]} 1... e5 {[%clk 0:02:57.4]} 2. Nf3 {[%clk 0:03:00.7]}
2... Nc6 {[%clk 0:02:57.4]} 3. Nc3 {[%clk 0:02:59.5]} 3... Nf6 {[%clk
0:02:56.5]} 4. a3 {[%clk 0:02:59.4]} 4... a6 {[%clk 0:02:47.9]} 5. d4 {[%clk
0:02:58.2]} 5... exd4 {[%clk 0:02:29.7]} 6. Nxd4 {[%clk 0:02:59.1]} 6... Bc5
{[%clk 0:02:20.5]} 7. Be3 {[%clk 0:02:57.8]} 7... Nxd4 {[%clk 0:02:06.3]} 8.
Bxd4 {[%clk 0:02:57.8]} 8... Qe7 {[%clk 0:02:05.7]} 9. Bxc5 {[%clk 0:02:51]}
9... Qxc5 {[%clk 0:02:04.8]} 10. Qd3 {[%clk 0:02:48]} 10... O-O {[%clk
0:02:01.7]} 11. h3 {[%clk 0:02:45.7]} 11... d6 {[%clk 0:02:01]} 12. O-O-O {[%clk
0:02:46]} 12... b5 {[%clk 0:01:50.5]} 13. f4 {[%clk 0:02:43.2]} 13... b4 {[%clk
0:01:42]} 14. axb4 {[%clk 0:02:43.3]} 14... Qxb4 {[%clk 0:01:42.3]} 15. Qd4
{[%clk 0:02:33.7]} 15... Qa5 {[%clk 0:01:19.6]} 16. Bc4 {[%clk 0:02:28.6]} 16...
Rb8 {[%clk 0:01:02.1]} 17. e5 {[%clk 0:02:24.9]} 17... Ne8 {[%clk 0:00:53.2]}
18. Bb3 {[%clk 0:02:09.4]} 18... Rb4 {[%clk 0:00:45.9]} 19. Qd5 {[%clk
0:02:07.6]} 19... Qb6 {[%clk 0:00:29.8]} 20. Qd2 {[%clk 0:01:59.8]} 20... Be6
{[%clk 0:00:24.6]} 21. Nd5 {[%clk 0:01:58.3]} 21... Bxd5 {[%clk 0:00:24.1]} 22.
Qxd5 {[%clk 0:01:59.2]} 22... c6 {[%clk 0:00:24.4]} 23. Qf3 {[%clk 0:01:54.6]}
23... d5 {[%clk 0:00:24.1]} 24. f5 {[%clk 0:01:54.9]} 24... c5 {[%clk
0:00:21.7]} 25. Qxd5 {[%clk 0:01:44.6]} 25... c4 {[%clk 0:00:21.6]} 26. Bxc4
{[%clk 0:01:44.7]} 26... Rxb2 {[%clk 0:00:21.1]} 27. Bb3 {[%clk 0:01:44]} 27...
Nc7 {[%clk 0:00:15]} 28. Qxf7+ {[%clk 0:01:37.4]} 1-0

[Event "Late-Titled-Tuesday-Blitz-March-05-2024"]
[Site "Chess.com"]
[Date "2024.03.05"]
[Round "8"]
[White "jamengrand"]
[Black "IlanSchnaider"]
[Result "1-0"]
[WhiteElo "2494"]
[BlackElo "2619"]
[TimeControl "180+1"]
[EndTime "15:23:29 PST"]
[Termination "jamengrand won by resignation"]

1. e4 {[%clk 0:03:00.9]} 1... c5 {[%clk 0:02:59.5]} 2. Nf3 {[%clk 0:03:01.1]}
2... d6 {[%clk 0:02:59.8]} 3. d4 {[%clk 0:03:01.7]} 3... cxd4 {[%clk 0:03:00.7]}
4. Nxd4 {[%clk 0:03:02]} 4... Nf6 {[%clk 0:03:01.2]} 5. Nc3 {[%clk 0:03:02.7]}
5... a6 {[%clk 0:03:01.6]} 6. Bd3 {[%clk 0:03:03]} 6... g6 {[%clk 0:03:01]} 7.
f3 {[%clk 0:03:02.5]} 7... Qb6 {[%clk 0:02:58.7]} 8. a3 {[%clk 0:03:02.1]} 8...
Bg7 {[%clk 0:02:55.4]} 9. Be3 {[%clk 0:03:02.3]} 9... Qc7 {[%clk 0:02:44.6]} 10.
Qd2 {[%clk 0:03:01.4]} 10... Nc6 {[%clk 0:02:44.1]} 11. O-O-O {[%clk 0:02:58.3]}
11... b5 {[%clk 0:02:41.3]} 12. Nxc6 {[%clk 0:02:58.1]} 12... Qxc6 {[%clk
0:02:41.3]} 13. e5 {[%clk 0:02:54]} 13... Bb7 {[%clk 0:00:49.9]} 14. exf6 {[%clk
0:02:48.6]} 14... Bxf6 {[%clk 0:00:50.8]} 15. Be4 {[%clk 0:02:44.1]} 15... Qd7
{[%clk 0:00:45.4]} 16. Bxb7 {[%clk 0:02:36.8]} 16... Qxb7 {[%clk 0:00:46.3]} 17.
Nd5 {[%clk 0:02:36.9]} 17... Bg7 {[%clk 0:00:40.6]} 18. Bh6 {[%clk 0:02:33.8]}
18... O-O {[%clk 0:00:34.7]} 19. Rhe1 {[%clk 0:02:32.3]} 19... e5 {[%clk
0:00:30.2]} 20. Bxg7 {[%clk 0:02:26.6]} 20... Kxg7 {[%clk 0:00:31.1]} 21. h4
{[%clk 0:02:12.8]} 21... h5 {[%clk 0:00:25.2]} 22. g4 {[%clk 0:02:11.9]} 22...
hxg4 {[%clk 0:00:25.5]} 23. fxg4 {[%clk 0:02:02.5]} 23... a5 {[%clk 0:00:17.7]}
24. h5 {[%clk 0:02:02.5]} 24... Rh8 {[%clk 0:00:13.5]} 25. Qg5 {[%clk
0:01:59.3]} 25... Rh6 {[%clk 0:00:07.2]} 26. Qf6+ {[%clk 0:01:56.4]} 26... Kh7
{[%clk 0:00:07.2]} 27. Ne7 {[%clk 0:01:50.7]} 27... Rf8 {[%clk 0:00:05]} 28.
hxg6+ {[%clk 0:01:45.1]} 28... fxg6 {[%clk 0:00:03.6]} 29. Qxf8 {[%clk
0:01:41.2]} 1-0

[Event "Late-Titled-Tuesday-Blitz-March-05-2024"]
[Site "Chess.com"]
[Date "2024.03.05"]
[Round "8"]
[White "MaiqMaster"]
[Black "BillCoe"]
[Result "1-0"]
[WhiteElo "2320"]
[BlackElo "2135"]
[TimeControl "180+1"]
[EndTime "15:23:43 PST"]
[Termination "MaiqMaster won by checkmate"]

1. d4 {[%clk 0:02:55.7]} 1... d5 {[%clk 0:02:59.4]} 2. Nc3 {[%clk 0:02:54.3]}
2... e6 {[%clk 0:02:59.9]} 3. e4 {[%clk 0:02:54.1]} 3... dxe4 {[%clk 0:02:57.6]}
4. Nxe4 {[%clk 0:02:53.9]} 4... Nf6 {[%clk 0:02:56.8]} 5. Bg5 {[%clk 0:02:53.3]}
5... Be7 {[%clk 0:02:57]} 6. Bxf6 {[%clk 0:02:53.5]} 6... Bxf6 {[%clk
0:02:56.9]} 7. Nf3 {[%clk 0:02:54.2]} 7... O-O {[%clk 0:02:56]} 8. c3 {[%clk
0:02:53]} 8... Nd7 {[%clk 0:02:56.1]} 9. Bd3 {[%clk 0:02:53.2]} 9... Be7 {[%clk
0:02:56.1]} 10. Qc2 {[%clk 0:02:53]} 10... Re8 {[%clk 0:02:55.2]} 11. O-O-O
{[%clk 0:02:52.9]} 11... Nf8 {[%clk 0:02:46.3]} 12. h4 {[%clk 0:02:51.5]} 12...
b6 {[%clk 0:02:42.5]} 13. Kb1 {[%clk 0:02:34.3]} 13... c5 {[%clk 0:02:41.2]} 14.
Neg5 {[%clk 0:02:33]} 14... f5 {[%clk 0:02:17.9]} 15. dxc5 {[%clk 0:02:31.2]}
15... Qc7 {[%clk 0:02:11.9]} 16. Bb5 {[%clk 0:02:23.9]} 16... Rd8 {[%clk
0:02:06.2]} 17. Rxd8 {[%clk 0:02:22.3]} 17... Qxd8 {[%clk 0:02:04.1]} 18. Rd1
{[%clk 0:02:21.4]} 18... Qc7 {[%clk 0:02:04.1]} 19. cxb6 {[%clk 0:02:02.3]}
19... axb6 {[%clk 0:02:05]} 20. Nd4 {[%clk 0:01:58.3]} 20... Qc5 {[%clk
0:01:52.2]} 21. Qb3 {[%clk 0:01:51.2]} 21... Bxg5 {[%clk 0:01:46.1]} 22. hxg5
{[%clk 0:01:50.7]} 22... Qc7 {[%clk 0:01:28]} 23. Bc4 {[%clk 0:01:45.3]} 23...
Qe7 {[%clk 0:01:16.4]} 24. Nxf5 {[%clk 0:01:40.2]} 24... Qxg5 {[%clk 0:01:14.2]}
25. Nd4 {[%clk 0:01:39.9]} 25... Qf6 {[%clk 0:01:10.1]} 26. Qxb6 {[%clk
0:01:34.4]} 26... Qxf2 {[%clk 0:01:00.8]} 27. Rf1 {[%clk 0:01:29.3]} 27... Qxg2
{[%clk 0:00:54.3]} 28. Qd8 {[%clk 0:01:22.7]} 28... Bb7 {[%clk 0:00:04.2]} 29.
Rxf8# {[%clk 0:01:21.9]} 1-0

[Event "Late-Titled-Tuesday-Blitz-March-05-2024"]
[Site "Chess.com"]
[Date "2024.03.05"]
[Round "8"]
[White "N_Mullodzhanov"]
[Black "HanSchut"]
[Result "1-0"]
[WhiteElo "2502"]
[BlackElo "2328"]
[TimeControl "180+1"]
[EndTime "15:23:47 PST"]
[Termination "N_Mullodzhanov won by checkmate"]

1. e4 {[%clk 0:03:00.9]} 1... c5 {[%clk 0:02:58.7]} 2. c3 {[%clk 0:03:01]} 2...
g6 {[%clk 0:02:58.1]} 3. d4 {[%clk 0:03:01.2]} 3... cxd4 {[%clk 0:02:58.8]} 4.
cxd4 {[%clk 0:03:02.1]} 4... d5 {[%clk 0:02:59]} 5. e5 {[%clk 0:03:02.2]} 5...
Nc6 {[%clk 0:02:59]} 6. Nc3 {[%clk 0:03:01.7]} 6... Nh6 {[%clk 0:02:58.6]} 7.
Bb5 {[%clk 0:02:58.9]} 7... Bg7 {[%clk 0:02:52.2]} 8. h3 {[%clk 0:02:54.3]} 8...
O-O {[%clk 0:02:51]} 9. Nf3 {[%clk 0:02:54.6]} 9... f6 {[%clk 0:02:47.4]} 10.
O-O {[%clk 0:02:49.7]} 10... fxe5 {[%clk 0:02:43.5]} 11. dxe5 {[%clk 0:02:40.1]}
11... d4 {[%clk 0:02:20.5]} 12. Bxc6 {[%clk 0:02:33]} 12... dxc3 {[%clk
0:02:20.5]} 13. Qb3+ {[%clk 0:02:15]} 13... Kh8 {[%clk 0:02:11]} 14. Be4 {[%clk
0:02:08.5]} 14... cxb2 {[%clk 0:02:04.9]} 15. Bxb2 {[%clk 0:02:09.4]} 15... Nf5
{[%clk 0:02:00.3]} 16. Rfd1 {[%clk 0:02:05.7]} 16... Qb6 {[%clk 0:01:58.3]} 17.
Qxb6 {[%clk 0:01:49.3]} 17... axb6 {[%clk 0:01:59.2]} 18. g4 {[%clk 0:01:40.2]}
18... Nd6 {[%clk 0:01:49.4]} 19. exd6 {[%clk 0:01:39.6]} 19... Bxb2 {[%clk
0:01:48.9]} 20. Rab1 {[%clk 0:01:39.7]} 20... Bf6 {[%clk 0:01:31.6]} 21. d7
{[%clk 0:01:35.4]} 21... Bxd7 {[%clk 0:01:31.9]} 22. Rxd7 {[%clk 0:01:35.2]}
22... Rxa2 {[%clk 0:01:32.8]} 23. Rxb7 {[%clk 0:01:30.5]} 23... h5 {[%clk
0:00:34]} 24. g5 {[%clk 0:01:24.1]} 24... Bd4 {[%clk 0:00:33.4]} 25. Nxd4 {[%clk
0:01:22.9]} 25... Rfxf2 {[%clk 0:00:33.6]} 26. Rxe7 {[%clk 0:01:08.8]} 26...
Rfd2 {[%clk 0:00:30.6]} 27. Rf1 {[%clk 0:01:05.5]} 27... Kg8 {[%clk 0:00:15.4]}
28. Bd5+ {[%clk 0:01:05]} 28... Kh8 {[%clk 0:00:14.5]} 29. Rf8# {[%clk
0:01:05.9]} 1-0

[Event "Late-Titled-Tuesday-Blitz-March-05-2024"]
[Site "Chess.com"]
[Date "2024.03.05"]
[Round "8"]
[White "grandcoach"]
[Black "katharinareinecke"]
[Result "1-0"]
[WhiteElo "2224"]
[BlackElo "1974"]
[TimeControl "180+1"]
[EndTime "15:23:49 PST"]
[Termination "grandcoach won by resignation"]

1. e4 {[%clk 0:02:54.1]} 1... c6 {[%clk 0:02:59.2]} 2. d4 {[%clk 0:02:53.1]}
2... d5 {[%clk 0:02:59.2]} 3. e5 {[%clk 0:02:53.8]} 3... Bf5 {[%clk 0:02:58.4]}
4. Nf3 {[%clk 0:02:54.2]} 4... e6 {[%clk 0:02:53.9]} 5. Be2 {[%clk 0:02:54.8]}
5... Ne7 {[%clk 0:02:51.6]} 6. O-O {[%clk 0:02:55.2]} 6... Bg6 {[%clk
0:02:51.4]} 7. Nbd2 {[%clk 0:02:55.4]} 7... Nf5 {[%clk 0:02:51.2]} 8. Nb3 {[%clk
0:02:55.2]} 8... Be7 {[%clk 0:02:51.1]} 9. Bd2 {[%clk 0:02:52.9]} 9... O-O
{[%clk 0:02:50.7]} 10. a4 {[%clk 0:02:52.1]} 10... Nd7 {[%clk 0:02:47.9]} 11. a5
{[%clk 0:02:52.2]} 11... a6 {[%clk 0:02:47]} 12. Rc1 {[%clk 0:02:48.9]} 12... c5
{[%clk 0:02:46.5]} 13. c4 {[%clk 0:02:05.1]} 13... dxc4 {[%clk 0:02:40.1]} 14.
Bxc4 {[%clk 0:02:00.7]} 14... Rc8 {[%clk 0:02:28.1]} 15. d5 {[%clk 0:01:53.9]}
15... exd5 {[%clk 0:02:20.6]} 16. Bxd5 {[%clk 0:01:54.8]} 16... Kh8 {[%clk
0:02:14.3]} 17. Bxb7 {[%clk 0:01:50]} 17... Rb8 {[%clk 0:02:11.3]} 18. Bxa6
{[%clk 0:01:47.7]} 18... f6 {[%clk 0:02:03.7]} 19. e6 {[%clk 0:01:35.2]} 19...
Ne5 {[%clk 0:02:00.9]} 20. Nxc5 {[%clk 0:01:23.4]} 20... Rxb2 {[%clk 0:01:55.4]}
21. Bc3 {[%clk 0:01:12.3]} 21... Ra2 {[%clk 0:01:47.2]} 22. Nxe5 {[%clk
0:01:03.9]} 22... fxe5 {[%clk 0:01:44]} 23. Qxd8 {[%clk 0:01:02.5]} 23... Rxd8
{[%clk 0:01:40.7]} 24. Bc4 {[%clk 0:00:45.8]} 24... Nd4 {[%clk 0:01:36.1]} 25.
Bxa2 {[%clk 0:00:43.2]} 25... Ne2+ {[%clk 0:01:34.1]} 26. Kh1 {[%clk 0:00:43.2]}
26... Nxc1 {[%clk 0:01:28.2]} 27. Rxc1 {[%clk 0:00:44.1]} 27... Bc2 {[%clk
0:01:26.4]} 28. Nd7 {[%clk 0:00:39.1]} 28... Be4 {[%clk 0:01:21.7]} 29. Bc4
{[%clk 0:00:37]} 29... Bc5 {[%clk 0:01:16.7]} 30. Bxe5 {[%clk 0:00:34.5]} 30...
Be7 {[%clk 0:01:10.1]} 31. a6 {[%clk 0:00:33]} 31... Ra8 {[%clk 0:01:08.1]} 32.
Bb5 {[%clk 0:00:27.7]} 1-0

[Event "Late-Titled-Tuesday-Blitz-March-05-2024"]
[Site "Chess.com"]
[Date "2024.03.05"]
[Round "8"]
[White "giovannibrandao7"]
[Black "DonBroca"]
[Result "0-1"]
[WhiteElo "2199"]
[BlackElo "2158"]
[TimeControl "180+1"]
[EndTime "15:23:51 PST"]
[Termination "DonBroca won by checkmate"]

1. e4 {[%clk 0:03:00.9]} 1... c5 {[%clk 0:03:00.1]} 2. Nf3 {[%clk 0:03:01]} 2...
g6 {[%clk 0:03:00.4]} 3. d4 {[%clk 0:03:00.4]} 3... cxd4 {[%clk 0:03:01.3]} 4.
Nxd4 {[%clk 0:03:00.9]} 4... Nc6 {[%clk 0:03:01.1]} 5. Nc3 {[%clk 0:03:00.8]}
5... Nf6 {[%clk 0:03:00.5]} 6. Be3 {[%clk 0:02:58.3]} 6... Bg7 {[%clk
0:03:00.4]} 7. Be2 {[%clk 0:02:56.9]} 7... O-O {[%clk 0:02:59]} 8. O-O {[%clk
0:02:57.3]} 8... d5 {[%clk 0:02:59]} 9. exd5 {[%clk 0:02:55.9]} 9... Nxd5 {[%clk
0:02:59.9]} 10. Nxd5 {[%clk 0:02:56.4]} 10... Qxd5 {[%clk 0:02:59.9]} 11. Bf3
{[%clk 0:02:55.6]} 11... Qe5 {[%clk 0:02:38.8]} 12. Nxc6 {[%clk 0:02:52.4]}
12... bxc6 {[%clk 0:02:39.7]} 13. c3 {[%clk 0:02:52.6]} 13... Qc7 {[%clk
0:02:33.7]} 14. Qa4 {[%clk 0:02:45.7]} 14... Rb8 {[%clk 0:02:17.6]} 15. Rab1
{[%clk 0:02:23.5]} 15... Bf5 {[%clk 0:02:16.6]} 16. Be4 {[%clk 0:02:21.7]} 16...
Bxe4 {[%clk 0:02:12.1]} 17. Qxe4 {[%clk 0:02:22.6]} 17... Rfd8 {[%clk 0:02:12]}
18. Rfc1 {[%clk 0:02:06.5]} 18... Rb5 {[%clk 0:01:49.1]} 19. b3 {[%clk
0:01:52.9]} 19... Rbd5 {[%clk 0:01:48.6]} 20. g3 {[%clk 0:01:48.4]} 20... Qa5
{[%clk 0:01:09.3]} 21. Qxe7 {[%clk 0:01:38.8]} 21... Qxa2 {[%clk 0:01:08.8]} 22.
Qxa7 {[%clk 0:01:35.6]} 22... Qxa7 {[%clk 0:01:05.8]} 23. Bxa7 {[%clk
0:01:36.5]} 23... Rd3 {[%clk 0:01:05.3]} 24. c4 {[%clk 0:01:30.5]} 24... Ra8
{[%clk 0:01:05.1]} 25. Be3 {[%clk 0:01:28.1]} 25... Ra2 {[%clk 0:01:02.1]} 26.
b4 {[%clk 0:01:23.8]} 26... Bf8 {[%clk 0:01:01.7]} 27. b5 {[%clk 0:01:23.5]}
27... cxb5 {[%clk 0:01:02]} 28. cxb5 {[%clk 0:01:24.4]} 28... Rda3 {[%clk
0:00:49.4]} 29. b6 {[%clk 0:01:20.4]} 29... Bd6 {[%clk 0:00:46.8]} 30. b7 {[%clk
0:01:18.8]} 30... Kg7 {[%clk 0:00:43.6]} 31. Bf4 {[%clk 0:01:17.3]} 31... Bxf4
{[%clk 0:00:38.6]} 32. gxf4 {[%clk 0:01:16.9]} 32... Rf3 {[%clk 0:00:39.3]} 33.
b8=Q {[%clk 0:01:15.9]} 33... Rfxf2 {[%clk 0:00:39.6]} 34. Qe5+ {[%clk
0:01:16.1]} 34... Kh6 {[%clk 0:00:37.9]} 35. Rc3 {[%clk 0:00:59.4]} 35... Rxh2
{[%clk 0:00:36]} 36. Kf1 {[%clk 0:01:00.1]} 36... Rh1# {[%clk 0:00:34.9]} 0-1

[Event "Late-Titled-Tuesday-Blitz-March-05-2024"]
[Site "Chess.com"]
[Date "2024.03.05"]
[Round "8"]
[White "WindWhistler11"]
[Black "NateSolon"]
[Result "0-1"]
[WhiteElo "2532"]
[BlackElo "2683"]
[TimeControl "180+1"]
[EndTime "15:23:56 PST"]
[Termination "NateSolon won on time"]

1. c4 {[%clk 0:02:50]} 1... e6 {[%clk 0:02:59.7]} 2. e3 {[%clk 0:02:49.4]} 2...
d5 {[%clk 0:03:00.6]} 3. b3 {[%clk 0:02:49.1]} 3... Nf6 {[%clk 0:02:57.9]} 4.
Bb2 {[%clk 0:02:49.5]} 4... c6 {[%clk 0:02:56.5]} 5. Nf3 {[%clk 0:02:50.1]} 5...
Bd6 {[%clk 0:02:55.8]} 6. d3 {[%clk 0:02:50.7]} 6... O-O {[%clk 0:02:55.4]} 7.
Nbd2 {[%clk 0:02:51.4]} 7... Nbd7 {[%clk 0:02:53.1]} 8. cxd5 {[%clk 0:02:51.6]}
8... exd5 {[%clk 0:02:52.6]} 9. Be2 {[%clk 0:02:52.3]} 9... Re8 {[%clk
0:02:51.5]} 10. O-O {[%clk 0:02:52.9]} 10... Qe7 {[%clk 0:02:43.1]} 11. Re1
{[%clk 0:02:51.7]} 11... a5 {[%clk 0:02:43]} 12. Qc2 {[%clk 0:02:45.1]} 12... a4
{[%clk 0:02:40.1]} 13. bxa4 {[%clk 0:02:42.8]} 13... Nc5 {[%clk 0:02:34.3]} 14.
Rad1 {[%clk 0:02:20.8]} 14... Nxa4 {[%clk 0:02:19]} 15. Ba1 {[%clk 0:02:20.9]}
15... h6 {[%clk 0:02:18.9]} 16. Nf1 {[%clk 0:02:08.3]} 16... Bf5 {[%clk
0:02:14]} 17. Ng3 {[%clk 0:02:06.9]} 17... Bh7 {[%clk 0:02:14.3]} 18. Nd4 {[%clk
0:02:07.1]} 18... Qd7 {[%clk 0:02:06.1]} 19. Bf3 {[%clk 0:01:50.3]} 19... Nc5
{[%clk 0:02:01.9]} 20. e4 {[%clk 0:01:39.6]} 20... Bxg3 {[%clk 0:01:51.1]} 21.
hxg3 {[%clk 0:01:36.5]} 21... dxe4 {[%clk 0:01:51.1]} 22. dxe4 {[%clk
0:01:22.5]} 22... Ncxe4 {[%clk 0:01:51.3]} 23. Nb5 {[%clk 0:00:52.1]} 23... Qe7
{[%clk 0:01:34.5]} 24. Bxf6 {[%clk 0:00:42]} 24... Nxf6 {[%clk 0:01:28.3]} 25.
Qc3 {[%clk 0:00:12.8]} 25... Qf8 {[%clk 0:01:19.1]} 26. Rxe8 {[%clk 0:00:09.2]}
26... Rxe8 {[%clk 0:01:20]} 27. Nd6 {[%clk 0:00:07.1]} 27... Rb8 {[%clk
0:01:11.6]} 0-1

[Event "Late-Titled-Tuesday-Blitz-March-05-2024"]
[Site "Chess.com"]
[Date "2024.03.05"]
[Round "8"]
[White "OrtizAnahi2001"]
[Black "Bkmzzzzz"]
[Result "1-0"]
[WhiteElo "2534"]
[BlackElo "2410"]
[TimeControl "180+1"]
[EndTime "15:23:56 PST"]
[Termination "OrtizAnahi2001 won by resignation"]

1. d4 {[%clk 0:03:00.9]} 1... d5 {[%clk 0:02:59.5]} 2. c4 {[%clk 0:03:00.6]}
2... dxc4 {[%clk 0:02:58.5]} 3. Nf3 {[%clk 0:03:00.3]} 3... a6 {[%clk
0:02:58.5]} 4. e3 {[%clk 0:03:00.8]} 4... Nf6 {[%clk 0:02:57.6]} 5. a4 {[%clk
0:02:59.6]} 5... e6 {[%clk 0:02:56.3]} 6. Bxc4 {[%clk 0:02:59.7]} 6... c5 {[%clk
0:02:56.5]} 7. O-O {[%clk 0:02:59.7]} 7... Nc6 {[%clk 0:02:56.5]} 8. Nc3 {[%clk
0:02:59.8]} 8... Be7 {[%clk 0:02:55.8]} 9. Re1 {[%clk 0:02:59.7]} 9... O-O
{[%clk 0:02:52.6]} 10. b3 {[%clk 0:02:46.4]} 10... b6 {[%clk 0:02:31.3]} 11. Bb2
{[%clk 0:02:43.8]} 11... Bb7 {[%clk 0:02:30.7]} 12. d5 {[%clk 0:02:32.3]} 12...
exd5 {[%clk 0:02:13.1]} 13. Nxd5 {[%clk 0:02:30.8]} 13... Nxd5 {[%clk
0:02:04.7]} 14. Bxd5 {[%clk 0:02:25]} 14... Bf6 {[%clk 0:02:04]} 15. Bxf6 {[%clk
0:02:04.8]} 15... Qxf6 {[%clk 0:02:04.9]} 16. Qe2 {[%clk 0:02:04.5]} 16... Na5
{[%clk 0:01:36.2]} 17. Bxb7 {[%clk 0:02:02.4]} 17... Nxb7 {[%clk 0:01:37.1]} 18.
Rad1 {[%clk 0:02:01.1]} 18... Na5 {[%clk 0:01:31.2]} 19. Qc2 {[%clk 0:01:59.3]}
19... h6 {[%clk 0:01:21.5]} 20. e4 {[%clk 0:01:59.1]} 20... Qe6 {[%clk
0:01:20.3]} 21. Rd5 {[%clk 0:01:59]} 21... Rad8 {[%clk 0:01:19]} 22. Red1 {[%clk
0:01:59]} 22... Rxd5 {[%clk 0:01:17.1]} 23. exd5 {[%clk 0:01:59.2]} 23... Qd6
{[%clk 0:01:14.3]} 24. Nh4 {[%clk 0:01:50.8]} 24... g6 {[%clk 0:01:12.1]} 25. g3
{[%clk 0:01:48.5]} 25... Re8 {[%clk 0:01:11.1]} 26. Ng2 {[%clk 0:01:47.6]} 26...
Re5 {[%clk 0:01:10.1]} 27. Ne3 {[%clk 0:01:47.8]} 27... Nb7 {[%clk 0:00:57.6]}
28. Qc3 {[%clk 0:01:47.8]} 28... h5 {[%clk 0:00:49.4]} 29. Nc4 {[%clk
0:01:34.9]} 29... Rxd5 {[%clk 0:00:40.9]} 30. Nxd6 {[%clk 0:01:33.7]} 30...
Rxd1+ {[%clk 0:00:39.9]} 31. Kg2 {[%clk 0:01:34.3]} 31... Nxd6 {[%clk
0:00:37.7]} 32. Qf3 {[%clk 0:01:33.6]} 32... Rd4 {[%clk 0:00:33.8]} 33. Qa8+
{[%clk 0:01:32.7]} 33... Kg7 {[%clk 0:00:30.9]} 34. Qxa6 {[%clk 0:01:33.3]}
34... Rb4 {[%clk 0:00:30.2]} 35. a5 {[%clk 0:01:27.6]} 35... bxa5 {[%clk
0:00:23]} 36. Qxd6 {[%clk 0:01:26.3]} 36... Rxb3 {[%clk 0:00:13.4]} 37. Qxc5
{[%clk 0:01:24.3]} 1-0